Workbook

Sheet Лист1
A1: Школа | C1: МБОУ "Многопрофильный лицей №37" НМР РТ | F1: Согласование: | G1: должность | H1: Директор
A2: Типовое примерное меню приготавливаемых блюд | G2: фамилия | H2: Котляр.Д.Д.
A3: Возрастная категория | E3: 7-11 лет | G3: дата | H3: 14 | I3: 1 | J3: 2026
H4: день | I4: месяц | J4: год
A5: Неделя | B5: День недели | C5: Прием пищи | D5: Раздел меню | E5: Блюда | F5: Вес блюда, г | G5: Белки | H5: Жиры | I5: Углеводы | J5: Калорийность | K5: № рецептуры | L5: Цена
A6: 1 | B6: 3 | C6: Завтрак | D6: хлеб бел. | E6: Бутерброд с повидлом | F6: 60 | G6: 2.37 | H6: 0.87 | I6: 34.92 | J6: 153.6 | L6: 46.12
D7: гор.блюдо | E7: Каша кукурузная молочная | F7: 200 | G7: 13.6 | H7: 16.77 | I7: 22.55 | J7: 311.5
D8: гор.напиток | E8: Чай с сахаром и лимоном | F8: 200 | G8: 0.13 | H8: 0.02 | I8: 8.2 | J8: 34.02
D9: хлеб бел. | E9: Батон нарезной | F9: 40 | G9: 2.99 | H9: 1.15 | I9: 20.56 | J9: 104.8
D12: итого | F12: =F6+F7+F8+F9 -> 500 | G12: =SUM(G6:G11) -> 19.09 | H12: =SUM(H6:H11) -> 18.81 | I12: =SUM(I6:I11) -> 86.23 | J12: =SUM(J6:J11) -> 603.92 | L12: =SUM(L6:L11) -> 46.12
A13: =A6 -> 1 | B13: =B6 -> 3 | C13: Обед | D13: 1 блюдо | E13: Суп-лапша домашняя с картофелем | F13: 200 | G13: 8.35 | H13: 9.83 | I13: 25.3 | J13: 192.4 | L13: 89.90
D14: 2 блюдо | E14: Тефтели мясные с геркулесом | F14: 90 | G14: 6.3 | H14: 11.91 | I14: 14.86 | J14: 169.59
D15: гарнир | E15: Каша пшеничная (вязкая) | F15: 153 | G15: 6.7 | H15: 4.38 | I15: 35.99 | J15: 227
D16: напиток | E16: Напиток из плодов шиповника | F16: 200 | G16: 0.6 | H16: 0.1 | I16: 20.2 | J16: 123.6
D17: хлеб бел. | E17: Хлеб пшеничный | F17: 30 | G17: 2.28 | H17: 0.24 | I17: 14.76 | J17: 70.5
D18: хлеб черн. | E18: Хлеб ржаной | F18: 30 | G18: 1.98 | H18: 0.36 | I18: 11.88 | J18: 59.4
D21: итого | F21: =SUM(F13:F20) -> 703 | G21: =SUM(G13:G20) -> 26.21 | H21: =SUM(H13:H20) -> 26.82 | I21: =SUM(I13:I20) -> 122.99 | J21: =SUM(J13:J20) -> 842.49 | L21: =SUM(L13:L20) -> 89.90
A22: =A6 -> 1 | B22: =B6 -> 3 | C22: Итого за день: | F22: =F12+F21 -> 1203 | G22: =G12+G21 -> 45.3 | H22: =H12+H21 -> 45.63 | I22: =I12+I21 -> 209.22 | J22: =J12+J21 -> 1446.41 | L22: =L12+L21 -> 136.02
